[Event "Early-Titled-Tuesday-Blitz-September-05-2023"]
[Site "Chess.com"]
[Date "2023.09.05"]
[Round "9"]
[White "ChessRook_E"]
[Black "buenamor1972"]
[Result "0-1"]
[WhiteElo "2233"]
[BlackElo "2320"]
[TimeControl "180+1"]
[EndTime "9:39:47 PDT"]
[Termination "buenamor1972 won by resignation"]

1. d4 {[%clk 0:02:45.7]} 1... Nf6 {[%clk 0:02:59]} 2. c4 {[%clk 0:02:45.4]} 2...
e6 {[%clk 0:02:58.2]} 3. Nc3 {[%clk 0:02:45.5]} 3... Bb4 {[%clk 0:02:58.7]} 4.
Bg5 {[%clk 0:02:41.7]} 4... c5 {[%clk 0:02:58.2]} 5. Nf3 {[%clk 0:02:40.3]} 5...
cxd4 {[%clk 0:02:56.3]} 6. Nxd4 {[%clk 0:02:40.2]} 6... Qa5 {[%clk 0:02:56.7]}
7. Bd2 {[%clk 0:02:34.8]} 7... Nc6 {[%clk 0:02:49]} 8. Nxc6 {[%clk 0:02:31.8]}
8... dxc6 {[%clk 0:02:40.5]} 9. a3 {[%clk 0:02:30]} 9... Be7 {[%clk 0:02:34.8]}
10. Nd5 {[%clk 0:02:25.7]} 10... Qd8 {[%clk 0:02:34.5]} 11. Nxe7 {[%clk
0:02:25.9]} 11... Qxe7 {[%clk 0:02:35.4]} 12. Bc3 {[%clk 0:02:23.8]} 12... O-O
{[%clk 0:02:32.7]} 13. Qc2 {[%clk 0:02:23.9]} 13... c5 {[%clk 0:02:30.9]} 14. e3
{[%clk 0:02:24.2]} 14... b6 {[%clk 0:02:30]} 15. Bd3 {[%clk 0:02:23.9]} 15...
Bb7 {[%clk 0:02:30.5]} 16. O-O {[%clk 0:02:23.9]} 16... h6 {[%clk 0:02:27.8]}
17. b4 {[%clk 0:02:16.1]} 17... Rad8 {[%clk 0:02:25.7]} 18. Rfd1 {[%clk
0:02:12.3]} 18... e5 {[%clk 0:02:09.8]} 19. Be2 {[%clk 0:02:06.5]} 19... Ne4
{[%clk 0:02:03.7]} 20. Bb2 {[%clk 0:02:05.8]} 20... Ng5 {[%clk 0:01:46.1]} 21.
f3 {[%clk 0:02:01.8]} 21... f6 {[%clk 0:01:36.2]} 22. e4 {[%clk 0:01:58.5]}
22... Ne6 {[%clk 0:01:34.7]} 23. Bf1 {[%clk 0:01:54.6]} 23... Rxd1 {[%clk
0:01:27.4]} 24. Rxd1 {[%clk 0:01:54.5]} 24... Rd8 {[%clk 0:01:28]} 25. bxc5
{[%clk 0:01:51.1]} 25... Qxc5+ {[%clk 0:01:27]} 26. Kh1 {[%clk 0:01:51.1]} 26...
Rxd1 {[%clk 0:01:22]} 27. Qxd1 {[%clk 0:01:51.2]} 27... Qf2 {[%clk 0:01:22.5]}
28. c5 {[%clk 0:01:45.8]} 28... Nxc5 {[%clk 0:01:14.7]} 29. Bc4+ {[%clk
0:01:46]} 29... Kh7 {[%clk 0:01:15.2]} 30. h3 {[%clk 0:01:46.6]} 30... Qxb2
{[%clk 0:01:13.7]} 31. Qd8 {[%clk 0:01:41.2]} 31... Qc1+ {[%clk 0:01:05.8]} 32.
Kh2 {[%clk 0:01:38.5]} 32... Qxc4 {[%clk 0:01:06.3]} 0-1

[Event "Early-Titled-Tuesday-Blitz-September-05-2023"]
[Site "Chess.com"]
[Date "2023.09.05"]
[Round "9"]
[White "GOGIEFF"]
[Black "vugarrasulov"]
[Result "0-1"]
[WhiteElo "3005"]
[BlackElo "2953"]
[TimeControl "180+1"]
[EndTime "9:40:04 PDT"]
[Termination "vugarrasulov won by resignation"]

1. d4 {[%clk 0:03:00.9]} 1... Nf6 {[%clk 0:02:59.7]} 2. c4 {[%clk 0:03:01.1]}
2... e6 {[%clk 0:03:00]} 3. Nf3 {[%clk 0:03:00.6]} 3... Bb4+ {[%clk 0:02:57.8]}
4. Nbd2 {[%clk 0:03:00]} 4... O-O {[%clk 0:02:56.9]} 5. a3 {[%clk 0:02:59.3]}
5... Be7 {[%clk 0:02:53.7]} 6. e4 {[%clk 0:02:56]} 6... d6 {[%clk 0:02:50.5]} 7.
Be2 {[%clk 0:02:55.9]} 7... c5 {[%clk 0:02:42.4]} 8. d5 {[%clk 0:02:28.2]} 8...
exd5 {[%clk 0:02:39.2]} 9. cxd5 {[%clk 0:02:26.2]} 9... Re8 {[%clk 0:02:30]} 10.
O-O {[%clk 0:02:24.3]} 10... Bf8 {[%clk 0:02:30.5]} 11. Qc2 {[%clk 0:02:23.1]}
11... Bg4 {[%clk 0:02:26.2]} 12. b3 {[%clk 0:02:04.7]} 12... Nbd7 {[%clk
0:02:13.1]} 13. h3 {[%clk 0:01:59.1]} 13... Bh5 {[%clk 0:02:12.1]} 14. Bd3
{[%clk 0:01:57.4]} 14... a6 {[%clk 0:02:01.2]} 15. a4 {[%clk 0:01:56]} 15... Bg6
{[%clk 0:01:49.6]} 16. a5 {[%clk 0:01:41.4]} 16... Rc8 {[%clk 0:01:45.8]} 17.
Bb2 {[%clk 0:01:37]} 17... Nh5 {[%clk 0:01:29.7]} 18. Rfe1 {[%clk 0:01:31.4]}
18... Nf4 {[%clk 0:01:29.7]} 19. Bc4 {[%clk 0:01:27.2]} 19... Nf6 {[%clk
0:01:29]} 20. Bxf6 {[%clk 0:01:02.4]} 20... Qxf6 {[%clk 0:01:29.9]} 21. Kh2
{[%clk 0:00:59.8]} 21... Re7 {[%clk 0:01:14.4]} 22. Re3 {[%clk 0:00:53.9]} 22...
Qxa1 {[%clk 0:01:13.4]} 0-1

[Event "Early-Titled-Tuesday-Blitz-September-05-2023"]
[Site "Chess.com"]
[Date "2023.09.05"]
[Round "9"]
[White "TC2304"]
[Black "ashwanitiwari"]
[Result "1-0"]
[WhiteElo "2341"]
[BlackElo "2181"]
[TimeControl "180+1"]
[EndTime "9:40:07 PDT"]
[Termination "TC2304 won by resignation"]

1. c4 {[%clk 0:03:00.9]} 1... f5 {[%clk 0:02:59.5]} 2. g3 {[%clk 0:02:56]} 2...
Nf6 {[%clk 0:02:59.1]} 3. Bg2 {[%clk 0:02:56.7]} 3... d6 {[%clk 0:02:59.8]} 4.
d3 {[%clk 0:02:57.5]} 4... g6 {[%clk 0:02:59.9]} 5. Nc3 {[%clk 0:02:58.1]} 5...
Bg7 {[%clk 0:03:00.2]} 6. e4 {[%clk 0:02:58.9]} 6... fxe4 {[%clk 0:02:59.9]} 7.
Nxe4 {[%clk 0:02:58.9]} 7... e5 {[%clk 0:03:00.2]} 8. Nxf6+ {[%clk 0:02:53.1]}
8... Qxf6 {[%clk 0:02:59.4]} 9. Ne2 {[%clk 0:02:52.5]} 9... O-O {[%clk
0:02:57.6]} 10. Be3 {[%clk 0:02:52.8]} 10... Nc6 {[%clk 0:02:57.9]} 11. O-O
{[%clk 0:02:50.9]} 11... Be6 {[%clk 0:02:57.2]} 12. Nc3 {[%clk 0:02:51.1]} 12...
Qe7 {[%clk 0:02:56.5]} 13. Rb1 {[%clk 0:02:47]} 13... Qd7 {[%clk 0:02:55.2]} 14.
Nd5 {[%clk 0:02:33.6]} 14... Rac8 {[%clk 0:02:49.1]} 15. b4 {[%clk 0:02:31.4]}
15... Bh3 {[%clk 0:02:48.5]} 16. b5 {[%clk 0:02:31.4]} 16... Bxg2 {[%clk
0:02:46.2]} 17. Kxg2 {[%clk 0:02:31.6]} 17... Ne7 {[%clk 0:02:44.9]} 18. Nxe7+
{[%clk 0:02:25.4]} 18... Qxe7 {[%clk 0:02:44.7]} 19. Qg4 {[%clk 0:02:13.2]}
19... b6 {[%clk 0:02:43.3]} 20. h4 {[%clk 0:02:10]} 20... Rce8 {[%clk
0:02:40.6]} 21. Qe4 {[%clk 0:02:07.7]} 21... Qe6 {[%clk 0:02:36]} 22. h5 {[%clk
0:02:04.8]} 22... Rf5 {[%clk 0:02:29.8]} 23. hxg6 {[%clk 0:02:03.4]} 23... hxg6
{[%clk 0:02:29.2]} 24. Rb3 {[%clk 0:01:58.2]} 24... Ref8 {[%clk 0:02:29.1]} 25.
Ra3 {[%clk 0:01:58.3]} 25... Rh5 {[%clk 0:02:07.4]} 26. Rh1 {[%clk 0:01:40.2]}
26... Rxh1 {[%clk 0:02:05.7]} 27. Kxh1 {[%clk 0:01:41.1]} 27... Qf5 {[%clk
0:02:05.4]} 28. Rxa7 {[%clk 0:01:31.7]} 28... Qh5+ {[%clk 0:02:05]} 29. Kg2
{[%clk 0:01:23.1]} 29... Rf7 {[%clk 0:02:00.9]} 30. Qc6 {[%clk 0:01:02.3]} 30...
Bh6 {[%clk 0:01:55.7]} 31. Bxh6 {[%clk 0:00:55.4]} 31... Qxh6 {[%clk 0:01:51.1]}
32. Rxc7 {[%clk 0:00:49.6]} 32... Rxc7 {[%clk 0:01:49.9]} 33. Qxc7 {[%clk
0:00:50.5]} 1-0

[Event "Early-Titled-Tuesday-Blitz-September-05-2023"]
[Site "Chess.com"]
[Date "2023.09.05"]
[Round "9"]
[White "Agoking701"]
[Black "ckgchess"]
[Result "0-1"]
[WhiteElo "2569"]
[BlackElo "2860"]
[TimeControl "180+1"]
[EndTime "9:40:13 PDT"]
[Termination "ckgchess won by checkmate"]

1. e4 {[%clk 0:03:00.9]} 1... e5 {[%clk 0:02:58.8]} 2. Nf3 {[%clk 0:02:58.5]}
2... Nf6 {[%clk 0:02:59.2]} 3. Nxe5 {[%clk 0:02:51.1]} 3... d5 {[%clk
0:02:58.8]} 4. exd5 {[%clk 0:02:47.7]} 4... Qxd5 {[%clk 0:02:59.7]} 5. d4 {[%clk
0:02:46.1]} 5... Nc6 {[%clk 0:03:00]} 6. Nxc6 {[%clk 0:02:41.5]} 6... Qxc6
{[%clk 0:03:00.9]} 7. Nc3 {[%clk 0:02:39.9]} 7... Bb4 {[%clk 0:03:00.4]} 8. Bd2
{[%clk 0:02:31]} 8... O-O {[%clk 0:03:00]} 9. Bd3 {[%clk 0:02:21.7]} 9... Qxg2
{[%clk 0:02:55]} 10. Rf1 {[%clk 0:02:01]} 10... Re8+ {[%clk 0:02:54.9]} 11. Ne2
{[%clk 0:02:01.4]} 11... Bh3 {[%clk 0:02:45.8]} 12. Bxb4 {[%clk 0:01:49]} 12...
Qxf1+ {[%clk 0:02:45.5]} 13. Kd2 {[%clk 0:01:49.1]} 13... Qxf2 {[%clk
0:02:45.6]} 14. Qg1 {[%clk 0:01:34]} 14... Qf3 {[%clk 0:02:14]} 15. Qg3 {[%clk
0:01:24.7]} 15... Ne4+ {[%clk 0:01:23.7]} 16. Bxe4 {[%clk 0:01:23.8]} 16... Qxe4
{[%clk 0:01:24.6]} 17. Nf4 {[%clk 0:01:14.5]} 17... Qxd4+ {[%clk 0:01:21.9]} 18.
Nd3 {[%clk 0:01:14.8]} 18... Qg4 {[%clk 0:01:07.2]} 19. Qxc7 {[%clk 0:00:57.5]}
19... Qe2+ {[%clk 0:01:05.6]} 20. Kc1 {[%clk 0:00:51.1]} 20... Rac8 {[%clk
0:01:06.5]} 21. Qg3 {[%clk 0:00:50.1]} 21... Qxc2# {[%clk 0:01:06]} 0-1

[Event "Early-Titled-Tuesday-Blitz-September-05-2023"]
[Site "Chess.com"]
[Date "2023.09.05"]
[Round "9"]
[White "Taran2004"]
[Black "aghasiyevkamal"]
[Result "0-1"]
[WhiteElo "2366"]
[BlackElo "2535"]
[TimeControl "180+1"]
[EndTime "9:40:27 PDT"]
[Termination "aghasiyevkamal won by resignation"]

1. e4 {[%clk 0:02:59.4]} 1... e5 {[%clk 0:02:54.2]} 2. Nf3 {[%clk 0:02:59.5]}
2... Nc6 {[%clk 0:02:53.9]} 3. d4 {[%clk 0:02:59.7]} 3... exd4 {[%clk
0:02:53.3]} 4. Nxd4 {[%clk 0:03:00.4]} 4... Bc5 {[%clk 0:02:52.8]} 5. Nxc6
{[%clk 0:02:59]} 5... Qf6 {[%clk 0:02:51.7]} 6. Qf3 {[%clk 0:02:59]} 6... bxc6
{[%clk 0:02:38.1]} 7. Nc3 {[%clk 0:02:51]} 7... Qxf3 {[%clk 0:02:30.5]} 8. gxf3
{[%clk 0:02:51.8]} 8... Ne7 {[%clk 0:02:31.3]} 9. Be3 {[%clk 0:02:51.8]} 9...
Bb6 {[%clk 0:02:29.8]} 10. O-O-O {[%clk 0:02:51.5]} 10... d6 {[%clk 0:02:25.9]}
11. Bc4 {[%clk 0:02:51.1]} 11... Be6 {[%clk 0:02:24.1]} 12. Bb3 {[%clk
0:02:51.2]} 12... Bxb3 {[%clk 0:02:21]} 13. axb3 {[%clk 0:02:51.1]} 13... f5
{[%clk 0:02:21.2]} 14. Rhg1 {[%clk 0:02:50]} 14... O-O {[%clk 0:02:18.4]} 15. f4
{[%clk 0:02:32.9]} 15... fxe4 {[%clk 0:02:15.8]} 16. Nxe4 {[%clk 0:02:32.3]}
16... Bxe3+ {[%clk 0:02:08]} 17. fxe3 {[%clk 0:02:32.8]} 17... Nf5 {[%clk
0:02:08.9]} 18. Ng5 {[%clk 0:02:22.5]} 18... Nxe3 {[%clk 0:02:07.9]} 19. Rde1
{[%clk 0:02:22.1]} 19... Rae8 {[%clk 0:02:06.2]} 20. Kd2 {[%clk 0:02:03]} 20...
Nd5 {[%clk 0:01:56.8]} 21. Ne6 {[%clk 0:02:02.7]} 21... Rf7 {[%clk 0:01:56.3]}
22. f5 {[%clk 0:01:45]} 22... Nf6 {[%clk 0:01:32.6]} 23. c4 {[%clk 0:01:32.1]}
23... d5 {[%clk 0:01:21.6]} 24. Kd3 {[%clk 0:01:24.7]} 24... Ne4 {[%clk
0:01:19.2]} 25. Kd4 {[%clk 0:01:23.1]} 25... Nd6 {[%clk 0:01:18.1]} 26. cxd5
{[%clk 0:01:20.2]} 26... Nxf5+ {[%clk 0:01:17.5]} 27. Kc5 {[%clk 0:01:20.3]}
27... cxd5 {[%clk 0:01:04.3]} 28. Kxd5 {[%clk 0:01:19.7]} 28... Rd7+ {[%clk
0:01:03.8]} 29. Kc4 {[%clk 0:01:19.7]} 29... Rde7 {[%clk 0:01:02.1]} 30. Kd5
{[%clk 0:01:17.2]} 30... c6+ {[%clk 0:01:01.7]} 31. Kxc6 {[%clk 0:01:14.7]}
31... Rxe6+ {[%clk 0:01:01.4]} 32. Rxe6 {[%clk 0:01:15.5]} 32... Rxe6+ {[%clk
0:01:02.3]} 33. Kb7 {[%clk 0:01:16.3]} 33... Rb6+ {[%clk 0:01:01.9]} 34. Kxa7
{[%clk 0:01:16.1]} 34... Rxb3 {[%clk 0:01:02.8]} 35. Rf1 {[%clk 0:01:15.1]} 0-1

[Event "Early-Titled-Tuesday-Blitz-September-05-2023"]
[Site "Chess.com"]
[Date "2023.09.05"]
[Round "9"]
[White "Hoshka"]
[Black "hsd2016"]
[Result "0-1"]
[WhiteElo "2045"]
[BlackElo "2265"]
[TimeControl "180+1"]
[EndTime "9:40:28 PDT"]
[Termination "hsd2016 won on time"]

1. d4 {[%clk 0:00:54.5]} 1... c5 {[%clk 0:02:52.7]} 2. d5 {[%clk 0:00:50.2]}
2... d6 {[%clk 0:02:52.5]} 3. Nc3 {[%clk 0:00:49.5]} 3... Nf6 {[%clk 0:02:52.3]}
4. e4 {[%clk 0:00:49.4]} 4... a6 {[%clk 0:02:33.6]} 5. a4 {[%clk 0:00:48.7]}
5... g6 {[%clk 0:02:33.3]} 6. Be2 {[%clk 0:00:47.7]} 6... Bg7 {[%clk 0:02:25]}
7. Nf3 {[%clk 0:00:47.5]} 7... O-O {[%clk 0:02:17.5]} 8. O-O {[%clk 0:00:47.1]}
8... b6 {[%clk 0:02:16.8]} 9. Re1 {[%clk 0:00:44.7]} 9... Nbd7 {[%clk
0:02:16.6]} 10. h3 {[%clk 0:00:43.3]} 10... Rb8 {[%clk 0:02:16.6]} 11. Bf4
{[%clk 0:00:37.7]} 11... Nh5 {[%clk 0:02:16.1]} 12. Bh2 {[%clk 0:00:37.1]} 12...
Nhf6 {[%clk 0:02:12]} 13. e5 {[%clk 0:00:28.9]} 13... dxe5 {[%clk 0:02:11.6]}
14. Nxe5 {[%clk 0:00:28.8]} 14... Nxe5 {[%clk 0:02:10.5]} 15. Bxe5 {[%clk
0:00:28.4]} 15... Ra8 {[%clk 0:02:10.4]} 16. Bf3 {[%clk 0:00:26.4]} 16... Bb7
{[%clk 0:02:09]} 17. Qd2 {[%clk 0:00:19.8]} 17... Qd7 {[%clk 0:02:09.1]} 18.
Rad1 {[%clk 0:00:19.3]} 18... Rad8 {[%clk 0:02:07.9]} 19. g4 {[%clk 0:00:15.9]}
19... h5 {[%clk 0:02:06.7]} 20. g5 {[%clk 0:00:14.5]} 20... Nh7 {[%clk
0:02:05.9]} 21. Bxg7 {[%clk 0:00:14.2]} 21... Kxg7 {[%clk 0:02:06.8]} 22. Qf4
{[%clk 0:00:13.1]} 22... Qxh3 {[%clk 0:02:06]} 23. Rxe7 {[%clk 0:00:11.9]} 23...
Bc8 {[%clk 0:02:05.6]} 24. Qe5+ {[%clk 0:00:10]} 24... Kg8 {[%clk 0:02:05.4]}
25. Re1 {[%clk 0:00:09.8]} 25... Bg4 {[%clk 0:02:04.8]} 26. Bg2 {[%clk
0:00:09.2]} 26... Qh4 {[%clk 0:02:04]} 27. f4 {[%clk 0:00:08.5]} 27... Qg3
{[%clk 0:02:01.1]} 28. Kh1 {[%clk 0:00:07]} 28... h4 {[%clk 0:02:00.7]} 29. Qe4
{[%clk 0:00:05.4]} 29... h3 {[%clk 0:02:00.8]} 30. Bf1 {[%clk 0:00:03]} 30...
Bf3+ {[%clk 0:02:01.2]} 0-1

[Event "Early-Titled-Tuesday-Blitz-September-05-2023"]
[Site "Chess.com"]
[Date "2023.09.05"]
[Round "9"]
[White "Shockerlover"]
[Black "Witty_Alien"]
[Result "1/2-1/2"]
[WhiteElo "1977"]
[BlackElo "2166"]
[TimeControl "180+1"]
[EndTime "9:40:41 PDT"]
[Termination "Game drawn by agreement"]

1. d4 {[%clk 0:00:58.1]} 1... e5 {[%clk 0:00:58.4]} 2. dxe5 {[%clk 0:00:55.9]}
2... d6 {[%clk 0:00:58.8]} 3. exd6 {[%clk 0:00:50.8]} 3... Bxd6 {[%clk
0:00:59.7]} 4. Nf3 {[%clk 0:00:50.9]} 4... Nf6 {[%clk 0:01:00]} 5. e3 {[%clk
0:00:48.2]} 5... Nc6 {[%clk 0:01:00.1]} 6. Bb5 {[%clk 0:00:47.6]} 6... Bg4
{[%clk 0:01:00.1]} 7. O-O {[%clk 0:00:47.3]} 7... Qd7 {[%clk 0:00:59.3]} 8. h3
{[%clk 0:00:44.4]} 8... Bxh3 {[%clk 0:00:59.5]} 9. gxh3 {[%clk 0:00:36.5]} 9...
Qxh3 {[%clk 0:00:59.3]} 10. Re1 {[%clk 0:00:23.9]} 10... Ng4 {[%clk 0:00:57.5]}
11. Bf1 {[%clk 0:00:14.8]} 11... Bh2+ {[%clk 0:00:57.4]} 12. Kh1 {[%clk
0:00:14]} 1/2-1/2

[Event "Early-Titled-Tuesday-Blitz-September-05-2023"]
[Site "Chess.com"]
[Date "2023.09.05"]
[Round "9"]
[White "Duhless"]
[Black "Athanasios2"]
[Result "1-0"]
[WhiteElo "2999"]
[BlackElo "2705"]
[TimeControl "180+1"]
[EndTime "9:40:42 PDT"]
[Termination "Duhless won by resignation"]

1. e4 {[%clk 0:02:57]} 1... c5 {[%clk 0:02:59.9]} 2. Nc3 {[%clk 0:02:57]} 2...
d6 {[%clk 0:02:59.5]} 3. g3 {[%clk 0:02:57.9]} 3... Nf6 {[%clk 0:02:59.7]} 4.
Bg2 {[%clk 0:02:58.8]} 4... g6 {[%clk 0:03:00.1]} 5. Nge2 {[%clk 0:02:59.6]}
5... Bg7 {[%clk 0:03:00.6]} 6. O-O {[%clk 0:03:00.5]} 6... O-O {[%clk
0:03:01.3]} 7. Nd5 {[%clk 0:02:57.9]} 7... e6 {[%clk 0:02:58.3]} 8. Nxf6+ {[%clk
0:02:57.8]} 8... Bxf6 {[%clk 0:02:59]} 9. c3 {[%clk 0:02:58.2]} 9... d5 {[%clk
0:02:52.1]} 10. d4 {[%clk 0:02:56.5]} 10... dxe4 {[%clk 0:02:51.2]} 11. dxc5
{[%clk 0:02:51.6]} 11... Qc7 {[%clk 0:02:43]} 12. Qd6 {[%clk 0:02:48.7]} 12...
Qxd6 {[%clk 0:02:38.6]} 13. cxd6 {[%clk 0:02:49.5]} 13... Rd8 {[%clk 0:02:39.1]}
14. Rd1 {[%clk 0:02:47.3]} 14... Bd7 {[%clk 0:02:14]} 15. Bxe4 {[%clk
0:02:40.6]} 15... Bc6 {[%clk 0:02:14.6]} 16. Bg2 {[%clk 0:02:38.7]} 16... Bxg2
{[%clk 0:02:09.4]} 17. Kxg2 {[%clk 0:02:39.3]} 17... Na6 {[%clk 0:02:01.8]} 18.
Bf4 {[%clk 0:02:30.2]} 18... Nc5 {[%clk 0:01:57.7]} 19. Rac1 {[%clk 0:02:25.7]}
19... b5 {[%clk 0:01:37.5]} 20. b4 {[%clk 0:02:22.4]} 20... Na4 {[%clk
0:01:32.8]} 21. Rc2 {[%clk 0:02:06]} 21... Rac8 {[%clk 0:01:24.9]} 22. Be3
{[%clk 0:01:59.1]} 22... a6 {[%clk 0:01:16.8]} 23. d7 {[%clk 0:01:53.6]} 23...
Rc7 {[%clk 0:01:06.9]} 24. Rcd2 {[%clk 0:01:53.7]} 24... Kf8 {[%clk 0:00:59.5]}
25. Rd6 {[%clk 0:01:53.2]} 25... Ke7 {[%clk 0:00:56.3]} 26. Rxa6 {[%clk
0:01:52.4]} 26... Rcxd7 {[%clk 0:00:56.6]} 27. Rxd7+ {[%clk 0:01:50.9]} 27...
Rxd7 {[%clk 0:00:57.5]} 28. c4 {[%clk 0:01:50.9]} 28... Nc3 {[%clk 0:00:25]} 29.
Bc5+ {[%clk 0:01:49]} 29... Kd8 {[%clk 0:00:22.2]} 30. Nxc3 {[%clk 0:01:49.3]}
30... Bxc3 {[%clk 0:00:22.1]} 31. cxb5 {[%clk 0:01:50]} 31... Rb7 {[%clk
0:00:21.8]} 32. a4 {[%clk 0:01:49.2]} 32... Kd7 {[%clk 0:00:20.7]} 33. Rd6+
{[%clk 0:01:48.3]} 33... Kc7 {[%clk 0:00:20]} 34. Rc6+ {[%clk 0:01:48.1]} 34...
Kd7 {[%clk 0:00:20.1]} 35. Rd6+ {[%clk 0:01:47.8]} 35... Ke8 {[%clk 0:00:18.9]}
36. b6 {[%clk 0:01:46.9]} 36... Be5 {[%clk 0:00:18.9]} 37. Rd3 {[%clk
0:01:46.5]} 1-0

[Event "Early-Titled-Tuesday-Blitz-September-05-2023"]
[Site "Chess.com"]
[Date "2023.09.05"]
[Round "9"]
[White "Rosh1610"]
[Black "borocotoajua"]
[Result "0-1"]
[WhiteElo "2470"]
[BlackElo "2605"]
[TimeControl "180+1"]
[EndTime "9:40:50 PDT"]
[Termination "borocotoajua won by checkmate"]

1. e4 {[%clk 0:02:16.1]} 1... c6 {[%clk 0:02:55.3]} 2. Nc3 {[%clk 0:02:15.3]}
2... d5 {[%clk 0:02:54.8]} 3. Nf3 {[%clk 0:02:08.9]} 3... Bg4 {[%clk 0:02:54]}
4. h3 {[%clk 0:02:08.6]} 4... Bxf3 {[%clk 0:02:53.8]} 5. Qxf3 {[%clk 0:02:09.5]}
5... e6 {[%clk 0:02:54.7]} 6. Be2 {[%clk 0:02:09.1]} 6... d4 {[%clk 0:02:53.2]}
7. Nb1 {[%clk 0:02:09]} 7... Nd7 {[%clk 0:02:53.8]} 8. d3 {[%clk 0:02:09.3]}
8... Bd6 {[%clk 0:02:51.9]} 9. O-O {[%clk 0:02:07.6]} 9... Ne5 {[%clk 0:02:34]}
10. Qg3 {[%clk 0:02:07.3]} 10... Ng6 {[%clk 0:02:26.9]} 11. f4 {[%clk
0:02:07.4]} 11... h5 {[%clk 0:02:18.8]} 12. Na3 {[%clk 0:02:00.9]} 12... h4
{[%clk 0:02:13.9]} 13. Qf3 {[%clk 0:01:59.8]} 13... N8e7 {[%clk 0:01:59]} 14.
Nc4 {[%clk 0:01:58.7]} 14... Bc7 {[%clk 0:01:53.5]} 15. f5 {[%clk 0:01:57.5]}
15... exf5 {[%clk 0:01:48.4]} 16. exf5 {[%clk 0:01:58.4]} 16... Ne5 {[%clk
0:01:48.8]} 17. Nxe5 {[%clk 0:01:57.9]} 17... Bxe5 {[%clk 0:01:49.7]} 18. Bf4
{[%clk 0:01:58.3]} 18... Bf6 {[%clk 0:01:28.2]} 19. Rae1 {[%clk 0:01:55.1]}
19... Qb6 {[%clk 0:01:27.9]} 20. b3 {[%clk 0:01:54.7]} 20... O-O-O {[%clk
0:01:25.4]} 21. Qg4 {[%clk 0:01:52.9]} 21... Qc5 {[%clk 0:01:20.7]} 22. Bf3
{[%clk 0:01:50]} 22... Nd5 {[%clk 0:01:19.8]} 23. Bxd5 {[%clk 0:01:48.8]} 23...
Rxd5 {[%clk 0:01:17.6]} 24. Re2 {[%clk 0:01:45.3]} 24... Qa5 {[%clk 0:00:54.5]}
25. a4 {[%clk 0:01:43.6]} 25... Qd8 {[%clk 0:00:50.4]} 26. Rfe1 {[%clk
0:01:41.6]} 26... Qd7 {[%clk 0:00:50.3]} 27. Bh2 {[%clk 0:01:33.9]} 27... Qxf5
{[%clk 0:00:43.3]} 28. Re8+ {[%clk 0:01:28.5]} 28... Rxe8 {[%clk 0:00:42.8]} 29.
Rxe8+ {[%clk 0:01:29.4]} 29... Kd7 {[%clk 0:00:43.3]} 30. Qxf5+ {[%clk
0:01:27.1]} 30... Rxf5 {[%clk 0:00:44.2]} 31. Rb8 {[%clk 0:01:24.7]} 31... Bg5
{[%clk 0:00:41.1]} 32. Rc8 {[%clk 0:01:25.4]} 32... Be3+ {[%clk 0:00:40.1]} 33.
Kh1 {[%clk 0:01:24.8]} 33... Rf1+ {[%clk 0:00:39.5]} 34. Bg1 {[%clk 0:01:24.3]}
34... Rxg1+ {[%clk 0:00:40.1]} 35. Kh2 {[%clk 0:01:24.1]} 35... Kxc8 {[%clk
0:00:41]} 36. g4 {[%clk 0:01:20.9]} 36... hxg3# {[%clk 0:00:40.1]} 0-1

[Event "Early-Titled-Tuesday-Blitz-September-05-2023"]
[Site "Chess.com"]
[Date "2023.09.05"]
[Round "9"]
[White "Qvalda"]
[Black "FREDERICKtheMATE"]
[Result "0-1"]
[WhiteElo "2384"]
[BlackElo "2541"]
[TimeControl "180+1"]
[EndTime "9:40:54 PDT"]
[Termination "FREDERICKtheMATE won on time"]

1. d4 {[%clk 0:03:00.9]} 1... Nf6 {[%clk 0:02:59.5]} 2. Nf3 {[%clk 0:03:00.2]}
2... e6 {[%clk 0:03:00]} 3. g3 {[%clk 0:02:59.9]} 3... d5 {[%clk 0:03:00.7]} 4.
Bg2 {[%clk 0:03:00.1]} 4... c5 {[%clk 0:03:01.2]} 5. O-O {[%clk 0:02:59.6]} 5...
Nc6 {[%clk 0:03:01.8]} 6. c4 {[%clk 0:02:58.5]} 6... cxd4 {[%clk 0:03:02.1]} 7.
Nxd4 {[%clk 0:02:55.4]} 7... Bc5 {[%clk 0:03:01.9]} 8. Nxc6 {[%clk 0:02:47.7]}
8... bxc6 {[%clk 0:03:01.2]} 9. Nc3 {[%clk 0:02:45.7]} 9... O-O {[%clk
0:03:00.2]} 10. b3 {[%clk 0:02:41.7]} 10... Ba6 {[%clk 0:02:58.3]} 11. cxd5
{[%clk 0:02:26.7]} 11... cxd5 {[%clk 0:02:56.7]} 12. Bb2 {[%clk 0:02:25.7]}
12... Rc8 {[%clk 0:02:57.1]} 13. Qd2 {[%clk 0:02:12.3]} 13... Qa5 {[%clk
0:02:56]} 14. Rfd1 {[%clk 0:02:10.5]} 14... Bb4 {[%clk 0:02:54.9]} 15. Rac1
{[%clk 0:02:06.4]} 15... Qb6 {[%clk 0:02:53.1]} 16. Qf4 {[%clk 0:01:26.1]} 16...
Bd6 {[%clk 0:02:34.9]} 17. Qd2 {[%clk 0:01:14]} 17... Ng4 {[%clk 0:02:21.8]} 18.
e3 {[%clk 0:01:08.6]} 18... Ne5 {[%clk 0:02:21.7]} 19. Na4 {[%clk 0:00:35.6]}
19... Qb8 {[%clk 0:02:20.3]} 20. Bxe5 {[%clk 0:00:28.7]} 20... Bxe5 {[%clk
0:02:18.4]} 21. Nc5 {[%clk 0:00:28.8]} 21... Bb5 {[%clk 0:02:16.8]} 22. Bf1
{[%clk 0:00:21.7]} 22... Bd6 {[%clk 0:02:13]} 23. Bxb5 {[%clk 0:00:19.3]} 23...
Qxb5 {[%clk 0:02:13.9]} 24. Nd3 {[%clk 0:00:18.6]} 24... Ba3 {[%clk 0:02:13.7]}
25. Rc2 {[%clk 0:00:15.9]} 25... Qb7 {[%clk 0:02:03.5]} 26. Rxc8 {[%clk
0:00:08.6]} 26... Rxc8 {[%clk 0:02:00.9]} 27. Qa5 {[%clk 0:00:08.6]} 27... Qe7
{[%clk 0:01:55.3]} 28. Qa6 {[%clk 0:00:08]} 28... Rc3 {[%clk 0:01:52.3]} 29. Ne5
{[%clk 0:00:07.5]} 29... g6 {[%clk 0:01:42.9]} 30. Nc6 {[%clk 0:00:05.9]} 30...
Qd6 {[%clk 0:01:42.3]} 31. Nb4 {[%clk 0:00:01.7]} 31... Bxb4 {[%clk 0:01:40.6]}
32. Qxa7 {[%clk 0:00:02]} 32... Rc2 {[%clk 0:01:40.2]} 33. Rd4 {[%clk
0:00:01.7]} 33... Bc5 {[%clk 0:01:38]} 34. Qa8+ {[%clk 0:00:01.8]} 34... Qf8
{[%clk 0:01:37.1]} 0-1